bitfinex/quotes_ETHUSD_20260202
["timestamp","ask_amount","ask_price","bid_price","bid_amount"]
[1770045073190,12.14486202,2344.2,2342.2,1.06737255]
[1770045073428,12.14486202,2344.2,2342.3,0.62318628]
[1770045073592,0.00080096,2344.2,2342.3,0.62318628]
[1770045073798,0.00080096,2344.2,2342.7,0.0008012]
[1770045074361,0.00080096,2344.2,2343.1,0.01712109]
[1770045074492,0.00080096,2344.2,2343.2,0.895]
[1770045075230,0.00080096,2344.2,2343.3,1.0668715]
[1770045075433,0.00080096,2344.2,2343.4,0.62293575]
[1770045075593,0.00080096,2344.2,2343.4,1.51793575]
[1770045076123,0.0011,2344.7,2343.4,1.51873695]
[1770045076346,0.0011,2345.9,2343.9,0.01712109]
[1770045076541,0.0011,2345.9,2344.5,0.01712109]
[1770045076696,0.0011,2345.9,2344.6,0.895]
[1770045076892,0.0011,2345.9,2345.0,0.01712109]
[1770045077123,0.00080144,2346.4,2344.9,0.00080144]
[1770045077495,0.00080144,2346.4,2345.0,0.895]
[1770045078011,0.00080144,2346.4,2345.1,0.895]
[1770045078191,0.00080144,2346.4,2344.9,0.00080144]
[1770045078392,0.00080144,2346.4,2345.0,0.895]
[1770045078794,0.00080144,2346.4,2345.1,0.895]
[1770045079141,0.00080144,2346.4,2344.9,0.00080144]
[1770045079425,0.00080144,2346.4,2345.0,0.895]
[1770045079831,0.00080216,2347.1,2345.2,9.88528417]
[1770045080003,0.00080216,2347.1,2345.8,0.01712109]
[1770045080207,0.00080216,2347.1,2345.6,0.00080168]
[1770045080408,0.00080216,2347.1,2345.7,0.895]
[1770045081526,0.00080216,2347.1,2345.8,1.0657345]
[1770045082703,0.0011,2346.9,2345.8,1.0657345]
[1770045082897,0.0011,2346.9,2345.7,1.0657533]
[1770045083098,0.0011,2346.9,2345.6,0.00080168]
[1770045083431,5.475388,2346.8,2345.6,0.00080168]
[1770045083632,2.932231,2346.8,2345.6,0.00080168]
[1770045083929,0.0011,2346.9,2345.6,0.00080168]
[1770045084131,0.0011,2346.9,2345.6,0.89480168]
[1770045084428,0.00190216,2347.1,2345.6,0.89480168]
[1770045084630,0.00190216,2347.1,2345.7,0.01712109]
[1770045084828,0.00190216,2347.1,2345.7,1.09512967]
[1770045085196,0.00190216,2347.1,2345.7,10.96329275]
[1770045085396,0.00190216,2347.1,2345.8,1.0657345]
[1770045085732,0.00080312,2347.8,2346.5,0.01712109]
[1770045085937,1.12855183,2349.8,2347.0,0.00080336]
[1770045085938,10.16462802,2349.5,2347.0,0.00080336]
[1770045086097,10.16462802,2349.5,2347.0,1.91306064]
[1770045086409,10.16462802,2349.0,2347.1,0.894]
[1770045086741,10.16462802,2349.0,2347.2,0.894]
[1770045087526,10.16462802,2349.0,2347.3,1.06505346]
[1770045088115,0.1024,2348.9,2347.3,1.95905346]
[1770045088432,0.1024,2348.9,2347.0,0.00080336]
[1770045088433,10.16462802,2348.5,2347.0,0.00080336]
[1770045088727,0.00080336,2347.8,2346.9,1.06521039]
[1770045088927,0.00080336,2347.8,2347.2,1.06506569]
[1770045089135,0.0008024,2348.6,2347.2,1.06509119]
[1770045089426,0.0008024,2348.6,2347.4,1.06500809]
[1770045089601,0.0008024,2348.6,2347.4,1.08212918]
[1770045089801,0.0008024,2348.6,2347.0,0.0008036]
[1770045089999,0.0008024,2348.6,2347.3,1.06504638]
[1770045090233,0.0008024,2348.6,2347.2,1.06507293]
[1770045090532,10.16543042,2348.6,2347.3,1.06503666]
[1770045090738,1.01654304,2348.5,2347.3,1.06503666]
[1770045091410,11.18117106,2348.5,2347.1,0.894]
[1770045091619,10.16462802,2348.3,2347.0,0.0008036]
[1770045092133,1.01654304,2348.5,2347.0,0.0008036]
[1770045092341,0.0008024,2348.6,2347.0,0.0008036]
[1770045092634,10.16543042,2348.6,2347.0,0.0008036]
[1770045093158,0.0008024,2348.6,2347.0,0.0008036]
[1770045093335,10.16543042,2348.6,2347.0,0.0008036]
[1770045093632,0.0008024,2348.6,2347.0,0.0008036]
[1770045093952,0.0008024,2348.6,2347.8,0.01712109]
[1770045094103,0.00080288,2349.3,2347.9,0.894]
[1770045094302,0.00080288,2349.3,2347.9,10.76216308]
[1770045094507,0.00080288,2349.3,2348.3,0.01712109]
[1770045094741,0.00080288,2349.3,2348.0,9.23648523]
[1770045094742,0.00080288,2349.3,2348.1,0.01712109]
[1770045095040,0.00080288,2349.3,2348.4,0.01712109]
[1770045095240,0.0011,2349.9,2348.5,0.00080312]
[1770045096245,0.00080312,2349.3,2347.8,0.00080264]
[1770045096454,0.00080312,2349.3,2348.1,1.06465945]
[1770045096607,0.00080312,2349.3,2348.2,0.893]
[1770045096807,0.00190312,2349.3,2348.2,0.893]
[1770045097619,0.00190312,2349.3,2348.3,1.06459992]
[1770045098428,0.00190312,2349.3,2348.1,1.06468981]
[1770045098758,0.00190312,2349.3,2348.2,1.06460161]
[1770045099044,0.00190312,2349.3,2348.2,2.02277798]
[1770045101959,0.00190312,2349.3,2348.3,0.893]
[1770045103649,0.00190312,2349.3,2348.2,1.06460161]
[1770045103837,0.00190312,2349.3,2348.4,1.06455459]
[1770045104750,0.00190312,2349.3,2347.8,0.00080264]
[1770045104956,0.00190312,2349.3,2347.3,1.06502602]
[1770045104957,10.16462802,2348.8,2347.3,1.06502602]
[1770045105119,0.00080264,2348.6,2347.0,0.0008036]
[1770045105456,0.00080264,2348.6,2347.1,0.893]
[1770045105623,0.90789918,2348.5,2347.1,1.95814171]
[1770045105826,0.10320264,2348.6,2347.1,1.95814171]
[1770045106153,0.90792386,2348.5,2347.1,1.95814171]
[1770045106452,10.26702802,2348.2,2347.0,0.0008036]
[1770045106761,0.0008036,2347.8,2346.4,1.95844127]
[1770045106947,0.1024,2347.7,2346.4,0.893]
[1770045107149,0.1024,2347.7,2346.3,0.0008024]
[1770045107150,0.2335703,2347.4,2346.3,0.0008024]
[1770045107359,0.909473,2347.3,2346.3,0.0008024]
[1770045107559,0.0008024,2347.1,2345.9,1.06668124]
[1770045107762,0.0008024,2347.1,2345.9,0.001]
[1770045107970,0.90998107,2347.0,2345.9,0.894]
[1770045108272,0.0008024,2347.1,2345.9,1.51626608]
[1770045108437,0.0008036,2347.8,2346.3,8.09569731]
[1770045108643,2.9983981,2349.2,2347.0,8.1128196]
[1770045108644,1.12745183,2349.2,2347.0,8.1128196]
[1770045108974,0.00190312,2349.3,2347.4,8.11201576]
[1770045109276,0.00190312,2349.3,2347.5,0.893]
[1770045109429,1.13854885,2349.3,2347.6,0.89878947]
[1770045109628,0.1024,2349.2,2347.7,0.893]
[1770045109867,1.23904573,2349.2,2347.7,0.893]
[1770045110181,1.13664573,2349.1,2347.7,1.9578371]
[1770045110470,1.24094885,2349.3,2347.7,1.9578371]
[1770045110698,0.10430312,2349.3,2347.7,1.9578371]
[1770045110955,1.24094885,2349.3,2347.7,1.95785748]
[1770045111157,0.00190312,2349.3,2347.7,1.95785748]
[1770045111362,0.00190312,2349.3,2347.8,0.00080288]
[1770045111524,0.00190312,2349.3,2347.8,0.62434788]
[1770045111940,0.00190312,2349.3,2347.9,1.06478129]
[1770045112129,0.0011,2349.6,2348.5,0.00080336]
[1770045112431,0.0011,2349.8,2348.6,8.40161163]
[1770045112640,1.13664573,2350.9,2348.7,7.72506084]
[1770045112830,2.62844016,2351.2,2349.2,0.00080168]
[1770045112831,1.13664573,2351.2,2349.2,0.00080168]
[1770045113150,1.13664573,2351.2,2349.3,0.01712109]
[1770045113357,1.13664573,2351.2,2349.4,0.893]
[1770045113524,9.60883634,2351.1,2349.2,0.00080168]
[1770045113729,1.13664573,2350.9,2349.3,0.893]
[1770045113964,0.90994282,2350.8,2349.4,1.06410147]
[1770045114136,0.90994282,2350.7,2349.4,1.06410147]
[1770045114334,1.13664573,2350.9,2349.3,1.95711655]
[1770045114541,0.91016338,2350.8,2349.3,2.57858116]
[1770045114756,0.91016334,2350.7,2349.3,2.57858116]
[1770045115071,2.27322356,2351.3,2349.3,2.57858116]
[1770045115072,1.13664573,2351.2,2349.3,2.57858116]
[1770045115363,1.13664573,2351.5,2349.9,0.01712109]
[1770045115571,0.23756236,2351.4,2349.6,7.49149054]
[1770045115871,1.50213177,2351.9,2349.7,1.06396561]
[1770045115872,1.13664573,2351.7,2349.7,1.06396561]
[1770045116028,0.90915637,2351.6,2349.8,0.893]
[1770045116229,1.13664573,2351.5,2349.6,1.06397998]
[1770045116434,0.90915637,2351.4,2349.9,0.893]
[1770045116742,0.90915637,2351.4,2349.3,1.68557791]
[1770045116743,7.66464779,2351.2,2349.3,1.68557791]
[1770045116943,2.04523831,2351.1,2349.5,1.06405125]
[1770045117265,2.04523831,2351.1,2349.1,1.06419606]
[1770045117266,8.80129352,2350.9,2349.1,1.06419606]
[1770045117472,7.66464779,2350.5,2348.5,0.00080336]
[1770045117677,0.00080168,2350.0,2348.6,0.893]
[1770045117970,3.52670473,2349.8,2348.5,0.00080336]
[1770045118142,1.13664573,2349.2,2347.8,0.00080288]
[1770045118367,0.1024,2349.0,2347.8,0.00080288]
[1770045118686,0.00080288,2348.6,2347.2,0.893]
[1770045119063,0.00080288,2348.6,2347.0,0.00080384]
[1770045119064,4.69739084,2348.4,2347.0,0.00080384]
[1770045119363,0.10320288,2348.6,2347.1,1.06512701]
[1770045119566,0.10320288,2348.6,2347.0,0.00080384]
[1770045119567,0.9094218,2348.5,2347.0,0.00080384]
[1770045119862,1.04291455,2348.6,2347.0,0.00080384]
[1770045120068,0.00080288,2348.6,2347.0,0.00080384]
[1770045120591,0.00080288,2348.6,2347.5,0.01712109]
[1770045120787,0.00080288,2348.6,2347.6,0.01712109]
[1770045121094,0.00080288,2348.6,2347.0,0.00080384]
[1770045121295,0.00080288,2348.6,2347.1,0.893]
[1770045122192,0.00080288,2348.6,2347.2,0.01712109]
[1770045122355,0.00080288,2348.6,2347.2,1.28351306]
[1770045122556,0.00080288,2348.6,2347.3,0.893]
[1770045123682,0.00080288,2348.6,2347.0,0.00080384]
[1770045123988,0.00080288,2348.6,2347.2,0.001]
[1770045123989,0.90956929,2348.5,2347.2,0.001]
[1770045124284,0.00080288,2348.6,2347.2,0.001]
[1770045125978,0.00080288,2348.6,2347.2,1.06609884]
[1770045126192,0.90958004,2348.5,2347.2,0.001]
[1770045126399,0.00080288,2348.6,2347.2,0.001]
[1770045126706,0.90943181,2348.5,2347.2,0.001]
[1770045126996,0.00080288,2348.6,2347.2,0.001]
[1770045127203,0.909437,2348.5,2347.2,0.001]
[1770045127363,0.909437,2348.4,2347.2,0.001]
[1770045127564,0.909437,2348.3,2347.2,0.001]
[1770045127764,0.909437,2348.2,2347.0,0.00180384]
[1770045128060,1.13661085,2348.4,2347.0,0.00180384]
[1770045128061,0.909437,2348.1,2347.0,0.00180384]
[1770045128262,1.51622518,2348.5,2347.0,0.00180384]
[1770045128263,0.909437,2348.0,2347.0,0.00180384]
[1770045128463,1.13661085,2348.3,2347.0,0.00180384]
[1770045128689,0.2652836,2348.3,2347.0,0.00180384]
[1770045128891,2.03041373,2348.6,2347.0,0.00180384]
[1770045129093,0.00080288,2348.6,2347.0,0.00180384]
[1770045129297,7.56305067,2348.6,2347.0,0.00180384]
[1770045129600,0.00080384,2347.8,2346.6,0.001]
[1770045130305,0.90894555,2347.7,2346.6,0.001]
[1770045130597,0.00080384,2347.8,2346.6,0.001]
[1770045131010,0.90897017,2347.7,2346.6,0.001]
[1770045131174,0.00080384,2347.8,2346.6,0.001]
[1770045131380,0.90876789,2347.7,2346.6,0.001]
[1770045131606,0.00080384,2347.8,2346.6,0.001]
[1770045131808,0.90865446,2347.7,2346.6,0.001]
[1770045131977,0.00080384,2347.8,2346.6,0.001]
[1770045133384,0.00080288,2348.6,2347.0,0.01712109]
[1770045133710,0.00080288,2348.6,2347.1,0.893]
[1770045133916,0.00080288,2348.6,2347.2,7.50861163]
[1770045134115,0.00080288,2348.6,2347.5,0.01712109]
[1770045134319,0.00080336,2349.3,2347.8,0.00080312]
[1770045134617,0.00080336,2349.3,2347.1,5.15321386]
[1770045134618,7.56224779,2348.7,2347.0,0.00080408]
[1770045134792,7.66464779,2348.2,2346.6,0.001]
[1770045134998,0.00080408,2347.8,2346.6,0.001]
[1770045135213,0.00080408,2347.8,2346.6,0.53392498]
[1770045135413,0.00080408,2347.8,2346.6,0.001]
[1770045135715,0.00080312,2348.6,2347.0,1.06514477]
[1770045135925,0.00080312,2348.6,2347.2,1.06508874]
[1770045136128,0.00080312,2348.6,2347.3,0.53254841]
[1770045136518,0.00080312,2348.6,2347.0,0.00080432]
[1770045137048,0.00080312,2348.6,2347.0,1.06599237]
[1770045137323,0.00080312,2348.6,2347.0,8.55748291]
[1770045137530,0.00080312,2348.6,2347.0,1.06599237]
[1770045137822,0.90861295,2348.5,2347.0,0.00080432]
[1770045138028,0.90861295,2348.4,2347.0,0.00080432]
[1770045138362,0.90882392,2348.3,2347.0,0.00080432]
[1770045138517,7.79581809,2348.1,2346.6,0.001]
[1770045138844,0.00080432,2347.8,2347.2,0.001]
[1770045139049,0.90937241,2347.7,2346.6,0.001]
[1770045139250,0.00080432,2347.8,2346.4,0.001]
[1770045139251,0.90937241,2347.6,2346.4,0.001]
[1770045139425,0.90937241,2347.5,2346.4,0.001]
[1770045139631,8.313301,2347.6,2346.4,0.001]
[1770045139950,1.85392882,2347.5,2346.4,0.001]
[1770045140150,5.048045,2347.7,2346.4,0.001]
[1770045140358,0.90885586,2347.6,2346.4,0.001]
[1770045140656,0.10320432,2347.8,2346.4,0.001]
[1770045140870,6.11657913,2347.7,2346.3,0.00080264]
[1770045141154,1.64404429,2347.6,2346.3,0.00080264]
[1770045141357,0.90858248,2347.5,2346.3,0.00080264]
[1770045141561,0.10320264,2347.1,2345.9,0.001]
[1770045141765,0.10320264,2347.1,2345.6,0.00180168]
[1770045141766,0.90858248,2347.0,2345.6,0.00180168]
[1770045141923,8.29357595,2346.9,2345.6,0.00180168]
[1770045142123,1.85141639,2346.8,2345.6,0.00180168]
[1770045142325,0.90818218,2346.7,2345.6,0.00180168]
[1770045142561,0.1024,2346.7,2344.9,0.00080144]
[1770045142725,0.00080168,2346.4,2344.9,0.00080144]
[1770045143434,0.3359703,2346.2,2344.9,0.00080144]
[1770045143622,0.86037552,2346.2,2344.9,0.00080144]
[1770045144360,0.75797552,2346.2,2344.9,0.00080144]
[1770045144725,0.00080168,2346.4,2344.9,0.00080144]
[1770045145756,0.1024,2346.3,2344.9,0.00080144]
[1770045145929,0.90942717,2346.2,2344.9,0.00080144]
[1770045146454,0.23437198,2346.4,2344.9,0.00080144]
[1770045146455,0.00080168,2346.4,2344.9,0.00080144]
[1770045147328,0.1024,2346.3,2344.9,0.00080144]
[1770045147533,2.05681744,2346.3,2344.9,0.00080144]
[1770045147728,0.91002777,2346.2,2344.9,0.00080144]
[1770045147970,1.1348346,2345.9,2344.9,0.00080144]
[1770045148148,0.00080144,2345.7,2344.7,0.001]
[1770045148362,0.91002777,2345.6,2344.7,0.001]
[1770045148564,0.00080144,2345.7,2344.7,0.001]
[1770045150270,1.01182097,2345.6,2344.1,0.00080216]
[1770045150476,7.623446,2345.3,2344.1,0.00080216]
[1770045150640,0.90942097,2345.5,2344.1,0.00080216]
[1770045150641,1.91567712,2345.2,2344.1,0.00080216]
[1770045150840,0.2335703,2345.0,2343.4,0.0008012]
[1770045151064,0.91045562,2344.9,2343.5,1.06674655]
[1770045151368,0.00080216,2344.9,2343.6,6.73068907]
[1770045151870,0.00080144,2345.7,2344.9,0.001]
[1770045152271,1.95441744,2346.3,2344.9,0.001]
[1770045152272,0.81958284,2346.3,2344.9,0.001]
[1770045152447,0.00080168,2346.4,2344.9,5.66575699]
[1770045152768,0.00080168,2346.4,2345.0,0.5665757]
[1770045153268,0.00080168,2346.4,2344.9,0.00180168]
[1770045153841,0.00080168,2346.4,2344.9,5.66575699]
[1770045154243,0.00080168,2346.4,2345.2,6.72996247]
[1770045154579,0.00080264,2347.1,2345.7,5.66395531]
[1770045154886,0.00080264,2347.1,2345.9,5.66395531]
[1770045155049,0.00080264,2347.1,2346.0,0.65579553]
[1770045155927,0.00080264,2347.1,2346.0,6.31975084]
[1770045156225,0.00080264,2347.1,2346.0,0.65579553]
[1770045156509,0.00080264,2347.1,2345.9,1.06565549]
[1770045156681,0.00080264,2347.1,2345.9,1.06566008]
[1770045157080,0.00080264,2347.1,2345.8,0.894]
[1770045157482,0.00080264,2347.1,2346.0,1.06564016]
[1770045158274,0.00080264,2347.1,2346.0,6.72959547]
[1770045158476,0.00080264,2347.1,2346.1,6.76318973]
[1770045158876,0.00080264,2347.1,2346.2,0.894]
[1770045160378,0.00080264,2347.1,2346.2,1.95951897]
[1770045160584,0.00080264,2347.1,2346.2,0.894]
[1770045160793,0.00080264,2347.1,2345.6,0.00080192]
[1770045161006,0.00080264,2347.1,2345.9,1.06566473]
[1770045161210,0.00080264,2347.1,2345.7,6.55795531]
[1770045161418,0.00080264,2347.1,2345.9,4.26273009]
[1770045161714,5.44156695,2346.6,2344.9,0.00180168]
[1770045161888,0.1024,2346.1,2344.9,0.00180168]
[1770045162089,0.1024,2346.3,2344.9,1.06793696]
[1770045162411,0.91021371,2346.2,2344.9,0.00180168]
[1770045162617,0.1024,2346.1,2344.9,0.00180168]
[1770045162827,0.1024,2346.0,2344.9,0.00180168]
[1770045163120,0.00080168,2345.7,2344.6,0.001]
[1770045163307,0.1024,2345.6,2344.6,0.001]
[1770045163517,0.1024,2345.4,2344.1,0.8948024]
[1770045163732,0.1024,2345.4,2343.7,4.26762561]
[1770045163733,0.2335703,2344.9,2343.7,0.001]
[1770045164038,0.2335703,2344.9,2343.4,0.0008012]
[1770045164039,0.1024,2344.5,2343.4,0.0008012]
[1770045164192,0.91039462,2344.4,2343.4,0.0008012]
[1770045164540,2.09478131,2344.9,2343.4,0.0008012]
[1770045164541,1.4708049,2344.6,2343.4,0.0008012]
[1770045164723,0.3359703,2344.4,2342.7,0.0008012]
[1770045164938,0.2335703,2343.8,2342.7,0.0008012]
[1770045165096,1.01306276,2343.7,2342.7,0.0008012]
[1770045165296,0.1024,2344.0,2342.7,0.0008012]
[1770045165802,0.1024,2344.0,2342.0,0.894]
[1770045165803,0.1024,2343.9,2342.0,0.894]
[1770045166008,0.0008012,2343.5,2342.0,0.894]
[1770045166211,0.0008012,2343.5,2342.0,1.96143378]
[1770045166507,0.0008012,2343.5,2342.0,0.894]
[1770045167017,0.0008012,2343.5,2342.0,1.96144598]
[1770045167238,0.0008012,2343.5,2342.0,0.894]
[1770045168339,0.1024,2343.3,2342.0,0.894]
[1770045168547,0.0008012,2343.5,2342.0,5.95973336]
[1770045168703,0.0008012,2343.5,2342.1,4.59434122]
[1770045169233,0.0008012,2344.2,2342.8,3.99828779]
[1770045170138,0.0008012,2344.2,2342.7,0.00080144]
[1770045170447,0.0008012,2344.2,2342.8,4.81126086]
[1770045170740,0.0008012,2344.2,2342.8,3.74416167]
[1770045170938,0.0008012,2344.2,2342.8,0.46389631]
[1770045171247,0.0008012,2344.2,2342.7,0.00080144]
[1770045171615,0.3359703,2344.0,2342.7,0.00080144]
[1770045171806,0.1024,2344.0,2342.7,0.00080144]
[1770045172010,0.0008012,2344.2,2342.7,0.00080144]
[1770045172251,0.3359703,2344.0,2342.7,0.00080144]
[1770045172434,0.1024,2344.0,2342.7,0.00080144]
[1770045172628,0.0008012,2344.2,2342.7,0.00080144]
[1770045173217,0.0008012,2344.2,2342.7,3.74496311]
[1770045173439,0.0008012,2344.2,2342.8,4.11865798]
[1770045174506,0.0008024,2344.9,2343.0,3.74416167]
[1770045174704,0.0008024,2344.9,2343.4,3.74496311]
[1770045174907,0.0008024,2344.9,2343.5,4.63816167]
[1770045176210,0.0008024,2344.9,2343.4,0.00080144]
[1770045176430,0.0008024,2344.9,2343.5,3.74416167]
[1770045176611,0.0008024,2344.9,2343.6,0.48117891]
[1770045176815,0.0008024,2344.9,2343.4,0.00080144]
[1770045177247,0.1024,2344.7,2343.4,0.00080144]
[1770045177549,0.1024,2344.1,2343.0,0.001]
[1770045177713,0.68145804,2344.1,2343.0,0.001]
[1770045177914,0.1024,2343.7,2342.7,0.00080144]
[1770045178142,0.1024,2343.5,2342.2,0.894]
[1770045178356,0.1024,2343.5,2341.9,0.00080096]
[1770045178357,0.2335703,2343.4,2341.9,0.00080096]
[1770045178569,0.10320144,2343.5,2341.9,0.00080096]
[1770045178859,0.00080144,2343.5,2341.9,0.00080096]
[1770045179060,0.2335703,2343.4,2341.9,0.00080096]
[1770045179363,0.10320144,2343.5,2341.9,0.00080096]
[1770045179947,0.2335703,2343.4,2341.9,0.00080096]
[1770045180147,0.1024,2343.3,2341.9,0.00080096]
[1770045181057,0.2335703,2343.2,2341.9,0.00080096]
[1770045181228,0.2335703,2342.8,2341.8,0.001]
[1770045181429,1.13563604,2343.5,2341.8,0.001]
[1770045181430,0.00080096,2342.7,2341.8,0.001]
[1770045181624,0.00080096,2342.7,2341.8,3.74516167]
[1770045181830,0.00080096,2342.7,2341.8,0.001]
[1770045182238,0.00080096,2342.7,2341.2,0.00080144]
[1770045182756,0.1024,2342.6,2341.2,0.00080144]
[1770045183629,0.00080096,2342.7,2341.2,0.00080144]
[1770045183970,0.00080096,2342.7,2341.2,3.74496311]
[1770045184141,0.00080096,2342.7,2341.3,0.37449631]
[1770045184338,0.00080096,2342.7,2341.3,4.11865798]
[1770045184636,0.00080096,2342.7,2341.3,5.18643541]
[1770045185156,0.00080096,2342.7,2341.3,5.18643954]
[1770045185548,0.00080096,2342.7,2339.8,0.0008012]
[1770045185549,0.00080144,2341.3,2339.8,0.0008012]
[1770045185841,0.00080144,2342.0,2340.7,1.06801813]
[1770045186159,0.00080144,2342.0,2340.5,0.00080168]
[1770045186844,0.10320144,2342.0,2340.5,0.00080168]
[1770045187458,2.964201,2341.6,2340.5,0.00080168]
[1770045187631,0.31977713,2341.5,2340.5,0.00080168]
[1770045187829,0.1024,2341.6,2340.5,0.00080168]
[1770045188751,0.00080144,2342.0,2340.5,0.00080168]
[1770045189463,0.3359703,2341.8,2340.5,0.00080168]
[1770045189870,0.1024,2341.8,2340.5,0.00080168]
[1770045190235,0.00080144,2342.0,2340.5,0.00080168]
[1770045190437,0.00080144,2342.0,2340.5,3.74496335]
[1770045190636,0.00080144,2342.0,2340.6,1.44255941]
[1770045190872,0.00080144,2342.0,2340.6,1.44259516]
[1770045191748,0.00080144,2342.0,2340.6,0.37449634]
[1770045191945,0.00080144,2342.0,2340.7,0.001]
[1770045191946,0.90932323,2341.9,2340.7,0.001]
[1770045192159,0.91021541,2341.8,2340.7,0.001]
[1770045192339,0.0011,2341.8,2340.7,0.001]
[1770045192845,0.91023988,2341.7,2340.7,0.001]
[1770045193051,0.0011,2341.8,2340.7,0.001]
[1770045193235,0.91070169,2341.7,2340.7,0.001]
[1770045193456,0.0011,2341.8,2340.7,0.001]
[1770045193782,0.91069128,2341.7,2340.7,0.001]
[1770045193990,0.0011,2341.8,2340.7,0.001]
[1770045194288,0.91058895,2341.7,2340.7,0.001]
[1770045194489,0.0011,2341.8,2340.7,0.001]
[1770045194657,0.91058866,2341.7,2340.7,0.001]
[1770045194859,0.0011,2341.8,2340.7,0.001]
[1770045195070,0.91058304,2341.7,2340.7,0.001]
[1770045195389,0.0011,2341.8,2340.7,0.001]
[1770045195690,0.91027803,2341.7,2340.7,0.001]
[1770045195893,0.0011,2341.8,2340.7,0.001]
[1770045196186,0.91027805,2341.7,2340.7,0.001]
[1770045196394,0.0011,2341.8,2340.7,0.001]
[1770045196559,0.90997961,2341.7,2340.7,0.001]
[1770045196755,0.0011,2341.8,2340.7,0.001]
[1770045196960,0.90999103,2341.7,2340.7,0.001]
[1770045197162,0.0011,2341.8,2340.7,0.001]
[1770045199496,0.0011,2341.8,2340.8,3.74416167]
[1770045199703,0.0011,2341.8,2340.9,4.11867784]
[1770045200060,0.0011,2341.8,2340.9,0.37451617]
[1770045200281,0.0011,2341.8,2340.7,0.001]
[1770045201967,0.0011,2341.8,2340.7,2.39540759]
[1770045202280,1.1348346,2343.0,2341.3,2.39440759]
[1770045202476,1.1348346,2343.2,2341.3,2.39440759]
[1770045202676,0.00080144,2343.5,2342.0,2.39440759]
[1770045202890,0.00080144,2343.5,2341.9,0.0008012]
[1770045202891,0.00080144,2343.5,2342.2,2.39440759]
[1770045203091,0.00080144,2343.5,2342.4,1.06728142]
[1770045203403,1.51702662,2344.2,2342.4,1.06728142]
[1770045203404,0.00080144,2344.2,2342.8,2.39440759]
[1770045203970,0.00080144,2344.2,2342.7,0.00080168]
[1770045203971,0.00080144,2344.2,2343.0,2.39440759]
[1770045204164,0.36502136,2344.7,2343.5,2.39440759]
[1770045204377,0.90963436,2344.6,2343.4,0.00080168]
[1770045204577,0.90963436,2344.5,2343.4,0.00080168]
[1770045204898,0.36502136,2344.7,2343.4,0.00080168]
[1770045205306,0.91027452,2344.6,2343.4,0.00080168]
[1770045205467,0.91027452,2344.5,2343.4,0.00080168]
[1770045205664,0.36502136,2344.7,2343.4,0.00080168]
[1770045205869,0.91028754,2344.6,2343.4,0.00080168]
[1770045206075,0.91028754,2344.5,2343.4,0.00080168]
[1770045206305,1.1348346,2344.5,2343.4,0.00080168]
[1770045206610,0.35613473,2344.4,2343.4,0.00080168]
[1770045206818,0.91028754,2344.3,2343.4,0.00080168]
[1770045206975,0.35613473,2344.4,2343.4,0.00080168]
[1770045207293,1.60225596,2344.7,2343.4,0.00080168]
[1770045207499,0.91136208,2344.6,2343.4,0.00080168]
[1770045207695,0.91136208,2344.5,2343.4,0.00080168]
[1770045207885,0.0011,2344.5,2343.5,2.39440759]
[1770045208493,0.0011,2344.5,2343.4,0.00080168]
[1770045209906,5.91685913,2344.4,2343.4,0.00080168]
[1770045210072,5.91685913,2344.4,2342.7,0.00080168]
[1770045210073,0.3359703,2344.2,2342.7,0.00080168]
[1770045210276,0.3359703,2344.0,2342.7,0.00080168]
[1770045210507,0.90982913,2343.9,2342.7,0.00080168]
[1770045210697,0.1024,2343.8,2342.7,0.00080168]
[1770045210901,0.90994327,2343.7,2342.7,0.00080168]
[1770045211091,0.1024,2344.1,2342.7,0.00080168]
[1770045211285,0.90963076,2344.0,2342.7,0.00080168]
[1770045211488,0.90963076,2343.9,2342.7,0.00080168]
[1770045211700,0.28304295,2344.1,2342.7,0.00080168]
[1770045211903,2.3837049,2344.0,2342.7,0.00080168]
[1770045212113,1.47400216,2343.8,2342.7,0.00080168]
[1770045212406,1.14807323,2343.7,2342.7,0.00080168]
[1770045212608,0.23837049,2343.7,2342.7,0.00080168]
[1770045212781,0.90962278,2343.6,2342.7,0.00080168]
[1770045212981,0.23837049,2343.7,2342.7,0.00080168]
[1770045213209,0.3359703,2344.0,2342.7,0.00080168]
[1770045213508,0.90945248,2343.9,2342.7,0.00080168]
[1770045213710,0.90945248,2343.8,2342.7,0.00080168]
[1770045213910,0.3359703,2344.0,2342.7,0.00080168]
[1770045214114,0.90943469,2343.9,2342.7,0.00080168]
[1770045214312,0.90943469,2343.8,2342.7,0.00080168]
[1770045214487,0.3359703,2344.0,2342.7,0.00080168]
[1770045214811,0.28304295,2344.1,2342.8,2.39440759]
[1770045214994,0.28304295,2344.1,2342.9,0.23952093]
[1770045215312,0.00080168,2344.2,2343.1,2.39440759]
[1770045215618,0.0019024,2344.9,2343.4,2.39520951]
[1770045216506,0.00080168,2345.7,2343.8,2.39440759]
[1770045216713,0.00080168,2345.7,2344.4,2.39440759]
[1770045216917,0.00080168,2345.7,2344.6,2.39440759]
[1770045217086,0.00080168,2345.7,2344.7,0.32894076]
[1770045217286,0.00080168,2345.7,2344.4,1.06634745]
[1770045217515,0.00080168,2345.7,2344.6,1.06627466]
[1770045217816,0.00080168,2345.7,2344.7,2.39440759]
[1770045217981,0.00080168,2345.7,2344.6,1.06627328]
[1770045218388,0.00080168,2345.7,2344.6,3.46068087]
[1770045218607,0.00080168,2345.7,2344.7,0.77258007]
[1770045218817,0.00080168,2345.7,2344.6,2.39440759]
[1770045218990,0.00080168,2345.7,2344.6,3.46068736]
[1770045219603,0.00080192,2346.4,2345.1,2.39440759]
[1770045219807,0.36501099,2346.9,2345.6,0.00080216]
[1770045220003,0.36501099,2346.9,2345.6,0.89580216]
[1770045220209,0.36501099,2346.9,2345.6,3.29020975]
[1770045220403,0.36501099,2346.9,2345.7,0.32902098]
[1770045220610,0.36501099,2346.9,2345.6,3.29020975]
[1770045220806,0.36501099,2346.9,2345.1,2.39440759]
[1770045221008,0.00080216,2346.4,2345.1,2.39440759]
[1770045221326,0.00080216,2346.4,2344.9,0.00080192]
[1770045221533,0.2335703,2346.2,2344.9,0.00080192]
[1770045221831,0.1024,2346.1,2344.9,0.00080192]
[1770045222031,0.2335703,2346.0,2344.9,0.00080192]
[1770045222531,3.17385,2345.3,2344.1,0.00080264]
[1770045222734,0.10320192,2345.7,2344.1,0.00080264]
[1770045222906,0.00080192,2345.7,2344.3,2.39440759]
[1770045223096,0.00080192,2345.7,2344.4,0.23944076]
[1770045223097,0.10320192,2345.7,2344.4,0.23944076]
[1770045223304,0.10320192,2345.7,2344.1,0.00080264]
[1770045223702,0.2335703,2345.6,2344.1,0.00080264]